Cogmind - Beta 13 @@@ ROGUE MODE // 2024.05.12 @ 20:42:21 Player: ThatBishHoly Result: Destroyed by X-62 Marksman with Pulse Rifle Performance ------------- Evolutions (2) 1000 Regions Visited (6) 1200 Robots Destroyed (43) 215 Value Destroyed (1215) 1215 Prototype IDs (7) 140 Alien Tech Used (0) 0 Bonus (420) 420 TOTAL SCORE: 4190 Bonus ------- Follower Combat Kills 120 Aligned with FarCom 300 Cogmind --------- Core Integrity 0/550 Matter 300/300 Energy 98/100 System Corruption 0% Temperature Cool (10) Movement Walking (120) Location -8/Materials Parts ------- > --- POWER (2) -------- (None) > --- PROPULSION (4) --- Armored Treads Aluminum Leg > --- UTILITY (3) ------ Lightpack 2.0 > --- WEAPON (2) ------- Longsword +1 > --- INVENTORY (40) --- Aluminum Leg Weapon Cycler Heavy Laser Gauss Rifle Flak Cannon Axe Peak State ------------ > --- POWER ------------ Deuterium Engine Light Nuclear Core > --- PROPULSION ------- Aluminum Leg Titanium Leg Titanium Leg Titanium Leg > --- UTILITY ---------- Lightpack 2.0 > --- WEAPON ----------- Precision Beam Rifle Longsword +1 > --- INVENTORY -------- Deuterium Engine Deuterium Engine Light Nuclear Core Armored Treads Weapon Cycler Precision Beam Rifle Precision Beam Rifle Heavy Laser Flak Cannon Axe [Rating: 61] Favorites ----------- Power Deuterium Engine Engine Deuterium Engine Power Core Light Nuclear Core Propulsion Aluminum Leg Treads Armored Treads Leg Aluminum Leg Wheel Wheel Flight Unit Improved Flight Unit Utility Small Storage Unit Device Improved Heat Sink Storage Small Storage Unit Protection Light Armor Plating Weapon EMP Blaster Energy Gun Precision Beam Rifle Launcher EMP Blaster Impact Weapon Heavy Hammer Slashing Weapon Longsword +1 Build | -11 -10 -9 -9 -9 -8 -8 ------- Run | Yrd Mat Mat Min Exi Min Mat Slots Evolved 4 | . . 2 . . . 2 Power 1 | . . . . . . 1 Propulsion 2 | . . 2 . . . . Utility 1 | . . . . . . 1 Weapon . | . . . . . . . Parts Attached 49 | 5 1 18 5 2 1 17 Power 8 | 1 . 2 . 1 . 4 Engine 6 | 1 . 2 . . . 3 Core 2 | . . . . 1 . 1 Reactor . | . . . . . . . Propulsion 25 | 2 . 10 5 . 1 7 Treads 1 | . . . . . . 1 Leg 14 | . . 2 5 . 1 6 Wheel 2 | 2 . . . . . . Hover . | . . . . . . . Flight 8 | . . 8 . . . . Utility 4 | 1 . 2 . . . 1 Device 1 | . . 1 . . . . Storage 2 | 1 . . . . . 1 Processor . | . . . . . . . Hackware . | . . . . . . . Protection 1 | . . 1 . . . . Artifact . | . . . . . . . Weapon 12 | 1 1 4 . 1 . 5 Energy Gun 7 | 1 1 2 . . . 3 Energy Cannon . | . . . . . . . Ballistic Gun . | . . . . . . . Ballistic Cannon . | . . . . . . . Launcher 1 | . . 1 . . . . Special Weapon . | . . . . . . . Impact Weapon 1 | . . 1 . . . . Slashing Weapon 3 | . . . . 1 . 2 Piercing Weapon . | . . . . . . . Special Melee Weapon . | . . . . . . . Unidentified Prototypes 5 | . . 1 . 1 1 2 Parts Lost 17 | . . 7 . . . 10 Power 4 | . . 1 . . . 3 Propulsion 9 | . . 4 . . . 5 Utility 1 | . . 1 . . . . Weapon 3 | . . 1 . . . 2 Highest Loss Streak 7 | . . 7 . . . 3 To Critical Strikes 1 | . . . . . . 1 Average Slot Usage (%) 79 | . 76 71 92 100 88 66 Engine 7 | . 14 10 11 . . 9 Core 3 | . . . . 11 11 2 Treads 1 | . . . . . . 3 Leg 24 | . . 4 21 44 43 25 Wheel 1 | . 28 . . . . . Flight 5 | . . 13 15 . . . Storage 10 | . 14 11 11 11 11 9 Protection 4 | . . 6 11 11 1 . Energy Gun 5 | . 19 13 . . . 6 Launcher 6 | . . 6 11 11 11 1 Impact Weapon 3 | . . . 11 5 . . Slashing Weapon 5 | . . . . 6 11 9 Naked Turns . | . . . . . . . Heaviest Build 28 | 12 13 22 22 20 20 28 Greatest Support 61 | 26 26 26 40 40 40 61 Greatest Overweight (x) 7 | . . 7 7 . . 6 Average Overweight (x) . | . . 1 . . . . Largest Inventory Capacity 40 | 8 8 8 8 8 8 40 Average Capacity 19 | 5 8 8 8 8 8 39 Most Carried 11 | 3 4 8 7 8 8 11 Average Carried 5 | . 1 4 3 6 7 6 Final Capacity 40 | 8 8 8 8 8 8 40 Final Carried 8 | . 4 3 5 8 7 6 Class Distribution -------------------- 38% | Scavenger-Mutant 36% | Hauler-Mutant 25% | Mutant Dominant Class ---------------- Mutant | -10/Materials Mutant | -9/Materials Scavenger-Mutant | -9/Mines Scavenger-Mutant | -9/Exiles Scavenger-Mutant | -8/Mines Hauler-Mutant | -8/Materials Resources | -11 -10 -9 -9 -9 -8 -8 ----------- Run | Yrd Mat Mat Min Exi Min Mat Matter Collected 676 | 240 20 111 120 . 40 145 Remotely . | . . . . . . . Salvage Created 1553 | . 118 416 112 . 161 746 Parts 78 | . 7 31 . . 9 31 Haulers Intercepted 1 | . . 1 . . . . Recyclers Shooed . | . . . . . . . Parts Field Recycled . | . . . . . . . Retrieved Matter . | . . . . . . . Parts Self-Destructed . | . . . . . . . Prevented . | . . . . . . . Kills | -11 -10 -9 -9 -9 -8 -8 ------- Run | Yrd Mat Mat Min Exi Min Mat Combat Hostiles Destroyed 33 | . 3 11 3 . 3 13 Melee 14 | . . . 1 . 3 10 Guns 13 | . 3 7 . . . 3 AOE 4 | . . 4 . . . . Classes Destroyed 10 | . 1 4 1 . 1 3 Worker 3 | . . 1 . . . 2 Builder 2 | . . . . . . 2 Tunneler 3 | . . . 3 . . . Hauler 1 | . . 1 . . . . Recycler 1 | . . . . . . 1 Swarmer 9 | . . 6 2 . . 1 Grunt 17 | . 3 3 1 . 2 8 Duelist 2 | . . . . . 1 1 Sentry 4 | . . 2 . . . 2 Hunter 1 | . . . . . . 1 Best Kill Streak 4 | . 2 4 2 . 3 4 Combat Bots Only 4 | . 2 4 2 . 3 4 Max Kills in Single Turn 2 | . 2 2 1 . 1 1 Gunslinging 1 | . 1 . . . . . Exploded 2 | . . 2 . . . . Melee 1 | . . . 1 . 1 1 Uniques/NPCs Destroyed . | . . . . . . . Combat | -11 -10 -9 -9 -9 -8 -8 -------- Run | Yrd Mat Mat Min Exi Min Mat Hostile Shots Fired 379 | . 14 100 38 . 10 217 Missed 105 | . 4 28 11 . 2 60 Damage Taken 3621 | . 133 805 273 . 172 2238 Core 904 | . 48 209 42 . 50 555 Absorbed by Shields . | . . . . . . . Core Remaining (%) 68 | 100 80 . . . 24 . Volleys Fired 69 | . 14 33 . . . 22 Largest 2 | . 2 2 . . . 1 Hottest 90 | . 90 90 . . . 61 Shots Fired 83 | . 17 44 . . . 22 Gun 76 | . 17 37 . . . 22 Cannon . | . . . . . . . Launcher 7 | . . 7 . . . . Special . | . . . . . . . Kinetic . | . . . . . . . Thermal 60 | . 17 21 . . . 22 Explosive . | . . . . . . . Electromagnetic 23 | . . 23 . . . . Robot Hit Streak 12 | . 6 5 . . . 12 Robot Miss Streak 8 | . 2 8 . . . 2 Penetration Max . | . . . . . . . Secondary Targets 1 | . 1 . . . . . Max Gunslinging Chain 1 | . 1 . . . . . Shots Hit Robots 103 | . 13 19 15 . 6 50 Core Hits 47 | . 7 16 1 . 4 19 Critical Kills 1 | . . . 1 . . . Critical Parts Destroyed 1 | . . . 1 . . . Critical Strikes 2 | . . . 2 . . . Smash 2 | . . . 2 . . . Melee Attacks 59 | . . . 19 . 6 34 Impact 19 | . . . 19 . . . Slashing 40 | . . . . . 6 34 Piercing . | . . . . . . . Sneak Attacks 6 | . . . 3 . . 3 Combat Hostiles . | . . . . . . . Follow-up Attacks . | . . . . . . . Damage Inflicted 3783 | . 166 671 786 . 210 1950 Guns 756 | . 157 311 . . . 288 Cannons . | . . . . . . . Explosions 352 | . . 352 . . . . Melee 2658 | . . . 786 . 210 1662 Ramming 17 | . 9 8 . . . . Kinetic . | . . . . . . . Thermal 736 | . 157 291 . . . 288 Explosive . | . . . . . . . Electromagnetic 372 | . . 372 . . . . Impact 786 | . . . 786 . . . Slashing 1872 | . . . . . 210 1662 Piercing . | . . . . . . . Highest Corruption . | . . . . . . . Average Corruption . | . . . . . . . Corruption Purged . | . . . . . . . Corruption Blocked . | . . . . . . . Overload Shots . | . . . . . . . Overflow Damage 530 | . . 57 315 . . 158 Projectiles . | . . . . . . . Explosions 57 | . . 57 . . . . Melee 473 | . . . 315 . . 158 Knockbacks 3 | . 1 . 2 . . . Impact 3 | . 1 . 2 . . . Kinetic . | . . . . . . . Secondary . | . . . . . . . Self-Inflicted Damage 29 | . 4 25 . . . . Shots 2 | . . 2 . . . . Rammed 4 | . 2 2 . . . . Targets Rammed 4 | . 2 2 . . . . Kicked . | . . . . . . . Crushed . | . . . . . . . Highest Temperature 381 | . 108 99 . . . 381 Average Temperature 99 | . 50 39 . . . 180 Received Heat Transfer 1209 | . 69 249 99 . 45 747 Effects 3 | . . . . . . 3 Shutdowns 2 | . . . . . . 2 Short Circuit 1 | . . . . . . 1 Siege Activations . | . . . . . . . Robots Corrupted . | . . . . . . . Combat Hostiles . | . . . . . . . Parts Fried 11 | . . 1 10 . . . Impact Corruptions 12 | . . . 12 . . . Robots Melted . | . . . . . . . Combat Hostiles . | . . . . . . . Parts Melted . | . . . . . . . Heat Transferred 1523 | . 445 449 . . . 629 Parts Sabotaged . | . . . . . . . Parts Stolen . | . . . . . . . Parts Stripped . | . . . . . . . Power Chain Reactions . | . . . . . . . Alert | -11 -10 -9 -9 -9 -8 -8 ------- Run | Yrd Mat Mat Min Exi Min Mat Peak Influence 329 | . 80 329 174 . 70 170 Initial 61 | . . 33 61 . . 27 Average 87 | . 35 161 94 . 67 66 Maximum Alert Level 1 | . . 1 . . . . Low Security (%) 95 | 100 100 75 100 . 100 100 Level 1 4 | . . 25 . . . . Level 2 . | . . . . . . . Level 3 . | . . . . . . . Level 4 . | . . . . . . . Level 5 . | . . . . . . . High Security . | . . . . . . . Max Security . | . . . . . . . Squads Dispatched 5 | . 1 1 . . . 3 Investigation 2 | . . 1 . . . 1 Extermination . | . . . . . . . Reinforcement 3 | . 1 . . . . 2 Assault . | . . . . . . . Garrison . | . . . . . . . Intercept . | . . . . . . . Searches Triggered . | . . . . . . . Construction Impeded . | . . . . . . . Haulers Reinforced . | . . . . . . . Active Scanning Responses . | . . . . . . . Cargo Convoy Interrupts . | . . . . . . . Stealth | -11 -10 -9 -9 -9 -8 -8 --------- Run | Yrd Mat Mat Min Exi Min Mat Distress Signals 3 | . . 2 . . . 1 Communications Jammed . | . . . . . . . Distress Signals . | . . . . . . . Times Spotted 59 | . 4 19 11 . 3 22 Peak Tracking Total 7 | . 3 7 4 . 3 6 Tactical Retreats 3 | . . . 2 . . 1 Traps | -11 -10 -9 -9 -9 -8 -8 ------- Run | Yrd Mat Mat Min Exi Min Mat Traps Triggered 1 | . . . . . . 1 Indirectly . | . . . . . . . Trap Hack Attempts . | . . . . . . . Triggered . | . . . . . . . Disarmed . | . . . . . . . Reprogrammed . | . . . . . . . Reused . | . . . . . . . Traps Extracted . | . . . . . . . Installed . | . . . . . . . Triggered . | . . . . . . . Machines | -11 -10 -9 -9 -9 -8 -8 ---------- Run | Yrd Mat Mat Min Exi Min Mat Machines Disabled 3 | . . 2 1 . . . Max in Single Turn 1 | . . 1 . . . . Machines Repaired . | . . . . . . . Machines Dismantled . | . . . . . . . Machines Sabotaged . | . . . . . . . Overloaded Fab Kills . | . . . . . . . Hacking | -11 -10 -9 -9 -9 -8 -8 --------- Run | Yrd Mat Mat Min Exi Min Mat Machines Accessed 6 | . . 2 . . . 4 Terminals 5 | . . 2 . . . 3 Fabricators . | . . . . . . . Repair Stations . | . . . . . . . Recycling Units 1 | . . . . . . 1 Scanalyzers . | . . . . . . . Garrison Access . | . . . . . . . Total Hacks 12 | . . 6 . . . 6 Successful 5 | . . 2 . . . 3 Failed 7 | . . 4 . . . 3 Catastrophic 1 | . . 1 . . . . Database Lockouts . | . . . . . . . Manual 1 | . . . . 1 . . Terminals 11 | . . 6 . . . 5 Fabricators . | . . . . . . . Repair Stations . | . . . . . . . Recycling Units 1 | . . . . . . 1 Scanalyzers . | . . . . . . . Garrison Access . | . . . . . . . Terminal Hacks 4 | . . 2 . . . 2 Prototype ID Bank 1 | . . 1 . . . . Dispatch Records 2 | . . . . . . 2 Hauler Manifests 1 | . . 1 . . . . Fabricator Hacks . | . . . . . . . Repair Station Hacks . | . . . . . . . Recycling Unit Hacks 1 | . . . . . . 1 Report Inventory 1 | . . . . . . 1 Scanalyzer . | . . . . . . . Garrison Access Hacks . | . . . . . . . Unauthorized Hacks . | . . . . . . . Terminals . | . . . . . . . Fabricators . | . . . . . . . Repair Stations . | . . . . . . . Recycling Units . | . . . . . . . Scanalyzers . | . . . . . . . Garrison Access . | . . . . . . . Data Cores Recovered . | . . . . . . . Used . | . . . . . . . Hacking Detections 4 | . . 2 . . . 2 Full Trace Events 1 | . . 1 . . . . Feedback Events . | . . . . . . . Feedback Blocked . | . . . . . . . Robot Schematics Acquired . | . . . . . . . Robots Built . | . . . . . . . Authchips . | . . . . . . . Time . | . . . . . . . Total Robot Build Rating . | . . . . . . . Part Schematics Acquired . | . . . . . . . Parts Built . | . . . . . . . Authchips . | . . . . . . . Time . | . . . . . . . Total Part Build Rating . | . . . . . . . Parts Repaired . | . . . . . . . Time . | . . . . . . . Parts Recycled . | . . . . . . . Recycled Matter . | . . . . . . . Retrieved Matter . | . . . . . . . Retrieved Components . | . . . . . . . Parts Scanalyzed . | . . . . . . . Part Schematics Acquired . | . . . . . . . Parts Damaged . | . . . . . . . Bothacking | -11 -10 -9 -9 -9 -8 -8 ------------ Run | Yrd Mat Mat Min Exi Min Mat Used RIF Installer . | . . . . . . . Robots Hacked . | . . . . . . . Non-combat . | . . . . . . . Combat . | . . . . . . . Robot Hacks Applied . | . . . . . . . Relay Couplers Released . | . . . . . . . Fabnet Peak Effective % . | . . . . . . . Robots Rewired . | . . . . . . . Allies Hacked . | . . . . . . . Hacks Repelled . | . . . . . . . Allies | -11 -10 -9 -9 -9 -8 -8 -------- Run | Yrd Mat Mat Min Exi Min Mat Total Allies 3 | . . . 3 . . . Largest Group 3 | . . . 3 . . . Highest-Rated Group 40 | . . . 40 . . . Highest-Rated Ally 16 | . . . 16 . . . Total Orders . | . . . . . . . Ally Attacks 31 | . . . 31 . . . Total Damage 253 | . . . 253 . . . Kills 4 | . . . 4 . . . Allies Corrupted . | . . . . . . . Allies Melted . | . . . . . . . Intel | -11 -10 -9 -9 -9 -8 -8 ------- Run | Yrd Mat Mat Min Exi Min Mat Robot Analysis Total . | . . . . . . . Derelict Logs Recovered . | . . . . . . . Drone Launches . | . . . . . . . Drone Recoveries . | . . . . . . . Exploration | -11 -10 -9 -9 -9 -8 -8 ------------- Run | Yrd Mat Mat Min Exi Min Mat Turns Passed 3118 | 43 114 472 616 440 307 1126 Spaces Moved 1895 | 41 84 222 468 334 220 526 Core 70 | 9 . 38 7 . . 16 Treads 16 | . . . . . . 16 Legs 1361 | . . 49 264 334 220 494 Wheels 136 | 32 84 20 . . . . Hover . | . . . . . . . Flight 312 | . . 115 197 . . . Fastest Speed 31 | 50 90 31 103 120 120 120 Average Speed 125 | 81 90 157 117 120 120 133 Slowest Speed 400 | 90 90 400 400 120 120 350 Overloaded Moves . | . . . . . . . Propulsion Burnouts . | . . . . . . . Robots Hopped . | . . . . . . . Cave-ins Triggered . | . . . . . . . Time Travels 1 | . . . . . 1 . Exploration Rate (%) 32 | 4 16 19 57 65 36 30 Regions Visited 6 Branch Regions 3 Pre-discovered Areas 1 | . . . 1 . . . Known Exits Taken . | . . . . . . . Unknown Exits Taken 6 | 1 1 1 1 1 1 . Scrap Searched . | . . . . . . . Spaces Dug . | . . . . . . . Terrain Destroyed 13 | . . 13 . . . . Melee . | . . . . . . . Projectile . | . . . . . . . AOE 13 | . . 13 . . . . Terrain Rammed . | . . . . . . . Walls Destroyed . | . . . . . . . Machines Disabled . | . . . . . . . Actions | -11 -10 -9 -9 -9 -8 -8 --------- Run | Yrd Mat Mat Min Exi Min Mat Total 2487 | 50 105 303 505 373 257 894 Wait 327 | . . . . 33 30 264 Move 1889 | 40 83 221 467 333 219 526 Hop . | . . . . . . . Pick Up 60 | 5 5 19 8 3 . 20 Fast Attach 1 | . . . . . 1 . Attach 34 | 5 1 14 4 . . 10 Detach . | . . . . . . . Swap 14 | . . 4 1 2 . 7 Drop 30 | . . 10 6 2 1 11 Fire 69 | . 14 33 . . . 22 Melee 59 | . . . 19 . 6 34 Ram 4 | . 2 2 . . . . Kick . | . . . . . . . Crush . | . . . . . . . Escape Stasis . | . . . . . . . Rewire . | . . . . . . . Trap . | . . . . . . . Miscellaneous . | . . . . . . . Route ------- -11/Scrapyard -10/Materials -9/Materials -9/Mines -9/Exiles -8/Mines -8/Materials History --------- Turn | Location | Event 16 | -11/Scrapyard | Discovered new exit (range 16) 44 | -11/Scrapyard | Entered Materials 146 | -10/Materials | Discovered new exit (range 14) 158 | -10/Materials | Entered another Materials area 158 | -9/Materials | Evolved 2 slots: Propulsion x2 321 | -9/Materials | Core integrity fell below 50% 337 | -9/Materials | Lost 7 parts (1p4n1u1w) 579 | -9/Materials | Build established: Mutant 620 | -9/Materials | Discovered new exit (range 8) 630 | -9/Materials | Entered Mines 712 | -9/Mines | Learned location of Storage (-7) 751 | -9/Mines | Assisted by bots powering up and referring to "LRC-V3" 783 | -9/Mines | Found a hidden stash of uninstalled traps 1180 | -9/Mines | Build established: Scavenger-Mutant 1237 | -9/Mines | Deemed a non-threat by the Exiles lab entrance 1239 | -9/Mines | Discovered new exit (range 5) 1246 | -9/Mines | Entered Exiles 1288 | -9/Exiles | Met 8R-AWN 1323 | -9/Exiles | Met EX-HEX 1374 | -9/Exiles | Met EX-BIN 1398 | -9/Exiles | Aligned with FarCom system 1399 | -9/Exiles | Given EX-Vault access code 1437 | -9/Exiles | Opened EX-Vault 1442 | -9/Exiles | Found Prototype Storage 1444 | -9/Exiles | Found Prototype Slashing Weapon 1445 | -9/Exiles | Identified Longsword +1 1450 | -9/Exiles | Found Prototype Device 1479 | -9/Exiles | Warned to stay clear of 0b10 Research branches 1491 | -9/Exiles | Exiles lab attacked by MAIN.C 1672 | -9/Exiles | Discovered new exit (range 11) 1686 | -9/Exiles | Stole three prototypes: Longsword +1, Lightpack 2.0, Chronowheel 1686 | -9/Exiles | Entered Mines 1710 | -8/Mines | Identified Chronowheel 1710 | -8/Mines | Activated Chronowheel 1710 | -8/Mines | Spacetime reconverged on an earlier point 1982 | -8/Mines | Discovered new exit (range 10) 1993 | -8/Mines | Entered Materials 1993 | -8/Materials | Evolved 2 slots: Power x1, Utility x1 1995 | -8/Materials | Identified Lightpack 2.0 2297 | -8/Materials | Build established: Hauler-Mutant 2894 | -8/Materials | Core integrity fell below 50% 3105 | -8/Materials | Core integrity fell below 20% 3119 | -8/Materials | Destroyed by X-62 Marksman with Pulse Rifle Last Messages --------------- 03099_ Penetrated by Slug. 03099_ Slug penetrates Wall. 03102_ Penetrated by Slug. 03102_ Deuterium Engine destroyed. 03104_ Slug penetrates Wall. 03105_ Penetrated by Slug. 03106_ U-05 Engineer lays Concrete. 03108_ Slug penetrates Wall. 03109_ Penetrated by Slug. 03111_ Sneak attack on K-01 Serf. 03111_ Destroyed Lgt. Ion Engine. 03111_ Destroyed Wheel. 03111_ K-01 Serf destroyed. 03111_ K-01 Serf collects debris. 03111_ Penetrated by Slug. 03111_ Critical hit (Destroy). 03111_ Prc. Beam Rifle destroyed. 03113_ Aluminum Leg destroyed. 03114_ K-01 Serf collects debris. 03119_ Slug penetrates Wall. Map ----- +----------------------------------------------------+ | ????????# """ "T" # #??????????????????????# #?? | | ????????# """ """ # #????????????????????### ##? | | ????????# # #????????????????????# #? | | ????????########### #????????????????????# #? | | ??????????????????# #????????????????????# #? | | ??????????????????# #????????????????????# +? | | ??????????????????# #????????????????????# #? | | ??????????????????# #????????????????????# #? | | ??????????????????# #????????????????????# #? | | ??????????????????+ ###+#+##?????????????# #? | | ????????????????w?# #?????????????# #? | | ??????????????????# +?????????????# #? | | ??????????????????? ?? #?????????????# #? | | ??????????????????######## #?????????????# #? | | ??????????????????# # #?????????????# #? | | ??????????????????#""" # ############### ## | | ??????????????????#""" " u k | | ??????????????????#""" # g | | ??????????????????# # | | ??????????????????# * # x gg # | | ??????????????????######## xg # | | ?????????????????????????#% #####/############# | | ?????????????????????????# #???? ??????????? | | ????????????# ############ #???? "????????? | | ???????????# ####? ""????????? | | ???????????# @ +? """???????? | | ?????????? k ####? ""????????? | | ????????????#/########+#### #???? "????????? | | ??????????????????????????# #????? ?????????? | | ??????????????????????????# #?????###+????????? | | ??????????????????????????# #?????????????????? | | ??????????????????????????? #?????????????????? | | ???????????????????????????#####?????????????????? | | ?????????????????????????????????????????????????? | | ?????????????????????????????????????????????????? | | ?????????????????????????????????????????????????? | | ?????????????Y???????????????????????????????????? | | ?????????????????????????????????????????????????? | | ?????????????????????????????????????????????????? | | ?????????????????????????????????????????????????? | | ?????????????????????????????????????????????????? | | | | | | | | | | | | | | | | | | | +----------------------------------------------------+ Best States ------------- Heat Dissipation 42 Energy Generation 23 Energy Capacity 450 Matter Stores 300 Matter Capacity 300 Sight Range 16 Terrain Scan Density 10 Armor Coverage 150 Evasion (%) 63 Recoil Reduction 1 Item Schematics ----------------- None Robot Schematics ------------------ None Fabricated ------------ Nothing Alien Tech Used ----------------- None Achievements -------------- None Challenges ------------ None Game ------ Seed SpectralThermoelectricOptics Manual? 0 Play Time 00:33:22 Cumulative 20.4 hours Start 2024.05.12 @ 20:11:26 End 2024.05.12 @ 20:42:21 Sessions 1 Manual Loads 0 Difficulty Rogue Special Mode None Game No. 62 Rogue 62 Adventurer 0 Explorer 0 Win Type - Total 0 Types 0/0/0/0/0/0/0/0/0 Lore% 13 Gallery% 30 Achievement% 22 Wizard Run 0 Options --------- Layout 1 ASCII 0 Keyboard 0 Movement Arrows Keybinds 0 Fullscreen 1 Font 16/SmallcapsGlow Map View 25x20 Zoom Use 99% Tactical HUD 1 Map Filters NONE Filters NONE Steam SD RUN: 0cfe2baa-36a2-418e-9d63-dc0bd4c28824